{"text_format":"3","workbook":"xlsx","n_sheets":4,"sheets":["2013年项目联系人","Sheet2","Sheet3","Sheet4"],"not_rendered":{"charts":2,"defined_names":2},"read":"whole","date_system":"1900"}

{"sheet":"2013年项目联系人","index":0,"n_rows":36,"n_cols":5,"rows_kept":36,"merged":[[0,0,0,4],[2,1,4,1],[5,1,7,1],[8,1,17,1],[18,1,20,1],[21,1,24,1],[25,1,34,1]]}
["附件3：    教育部-中国移动科研基金合作项目联系人（2013）    "]
["序号","专业领域","项目名称","联系人","电话"]
[{"$f":"ROW()-2","v":1},"移动通信网络\n（3个）","项目1-1：面向IMT2020核心技术验证的基带处理平台原型系统","潘振岗",13552595089]
[{"$f":"ROW()-2","v":2},null,"项目1-2：基于LTE的本地接入增强与3D-MIMO增强技术研究","刘光毅",13701173393]
[3,null,"项目1-3：在移动网络中应用SDN的关键算法、仿真系统及实验平台研发","陈炜",13911635873]
[4,"业务\n（3个）","项目2-1：高性能实时视频处理共享平台关键技术研究","温建伟",13810091545]
[5,null,"项目2-2：面向移动互联网的手机动态图快速制作及实时编解码技术研究","邹林",15892030591]
[6,null,"项目2-3：基于无线传感网的融合性室内定位解决方案研究","倪双雪",15802312029]
[7,"IT支撑与大数据\n（10个）","项目3-1：业务支撑系统信息模型关键技术研究","常倩",13911503251]
[8,null,"项目3-2：语义网关键技术研究与工具开发","丁子哲",13810090115]
[9,null,"项目3-3：客户声音自动文本识别系统研发与应用","郭靖羽",13922202287]
[10,null,"项目3-4：大数据典型业务场景和企业数据模型构建方法研究 ","宋翊麟",13426211200]
[11,null,"项目3-5：面向非结构化数据的并行挖掘算法研究和实现","邓超",15810454651]
[12,null,"项目3-6：大数据混搭架构下透明访问和数据统一管理技术研究与验证","何鸿凌",13601101331]
[13,null,"项目3-7：面向下一代OA与知识社区的互惠匹配模型关键技术与应用研究","张向祺",13911323216]
[14,null,"项目3-8：基于网络侧数据的用户特征提取与新业务受众预测研究","冯文仲\n詹义","13871377799;\n13671398925"]
[15,null,"项目3-9：大数据时代下移动消费的社会化商务模式研究","李伟权",13922200510]
[16,null,"项目3-10：基于大数据技术的用户偏好智能识别及推荐研究与应用","沈治",13857134567]
[17,"信息安全\n（3个）","项目4-1：高级持续威胁入侵方法和技术研究","杜雪涛",13910888992]
[18,null,"项目4-2：内容安全的关键字词与图片索引分析与溯源技术研究","杜雪涛",13910888992]
[19,null,"项目4-3：在HTML5应用环境下的支付业务可管可控方法研究","赖燕燕",13922200167]
[20,"基础配套与其它\n（4个）","项目5-1：阀控式密封铅酸蓄电池循环寿命与生产原材料关系研究","宋福峰",13911503236]
[21,null,"项目5-2：中国移动办公建筑能耗分析模型设计与实证研究","赵建杰",13811472576]
[22,null,"项目5-3：大型数据中心油机机组荷载作用下建筑结构设计及减振隔振技术研究","张学斌",13910920120]
[23,null,"项目5-4：电信运营企业技术创新能力评估研究","黄成",13811831502]
[24,"教育信息化（10个）","项目6-1：信息技术支持下的基础教育教学模式研究及试点","周艳琼",18601110221]
[25,null,"项目6-2：信息技术支持下的职业教育教学模式研究及试点","周艳琼",18601110221]
[26,null,"项目6-3：信息技术支持下的高等教育教学模式研究及试点","周艳琼",18601110221]
[27,null,"项目6-4：信息技术支持下的教学模式效果测量方法体系及实证研究","周艳琼",18601110221]
[28,null,"项目6-5：信息技术支持下的学生学习行为记录、分析与个性化支持技术研究及试点","周艳琼",18601110221]
[29,null,"项目6-6：教育网络环境净化关键技术及政策体系研究","周艳琼",18601110221]
[30,null,"项目6-7：高等学校智慧校园体系架构及关键技术研究","周艳琼",18601110221]
[31,null,"项目6-8：学校教育信息化工作人员职业发展状况调查、从业资格规范和相关政策研究","周艳琼",18601110221]
[32,null,"项目6-9：电子书包功能规范与应用试点","周艳琼",18601110221]
[33,null,"项目6-10：网络学习环境对学生身心健康的影响与干预实证研究\n研究内容","周艳琼",18601110221]
["-","合计"]

{"sheet":"Sheet2","index":1,"n_rows":13,"n_cols":5,"rows_kept":13,"hidden":true}
[null,"需求单位",null,null,"专业领域"]
[null,"采购共享服务中心",null,null,"移动通信网络"]
[null,"业务支撑系统部",null,null,"业务"]
[null,"管理信息系统部",null,null,"IT支撑与大数据"]
[null,"技术部",null,null,"信息安全"]
[null,"研究院",null,null,"基础配套"]
[null,"设计院"]
[null,"物联网公司"]
[null,"辽宁公司"]
[null,"浙江公司"]
[null,"福建公司"]
[null,"湖北公司、设计院"]
[null,"广东公司"]

{"sheet":"Sheet3","index":2,"n_rows":41,"n_cols":11,"rows_kept":41,"hidden":true}
["序号","专业领域","项目名称","需求单位","项目周期","联系人","电话","邮箱","经费预算"]
[1,"移动通信网络","面向IMT2020核心技术验证的基带处理平台原型系统","研究院","1.5年","潘振岗",13552595089,"panzhengang@chinamobile.com",200,null,{"$f":"H2","v":"panzhengang@chinamobile.com"}]
[2,"移动通信网络","基于LTE的本地接入增强与3D-MIMO增强技术研究","研究院","1年","刘光毅",13701173393,"liuguangyi@chinamobile.com;wangqixing@chinamobile.com",200,null,{"$f":"K2&\";\"&H3","v":"panzhengang@chinamobile.com;liuguangyi@chinamobile.com;wangqixing@chinamobile.com"}]
[3,"移动通信网络","在移动网络中应用SDN的关键算法、仿真系统及实验平台研发","研究院","2年","于青",13911635873,"yuqing@chinamobile.com",153,null,{"$f":"K3&\";\"&H4","v":"panzhengang@chinamobile.com;liuguangyi@chinamobile.com;wangqixing@chinamobile.com;yuqing@chinamobile.com"}]
[4,"业务","高性能实时视频处理共享平台关键技术研究","研究院","2年","温建伟",13810091545,"wenjianwei@chinamobile.com",195,null,"panzhengang@chinamobile.com;liuguangyi@chinamobile.com;wangqixing@chinamobile.com;yuqing@chinamobile.com;wenjianwei@chinamobile.com"]
[5,"业务","面向移动互联网的手机动态图快速制作及实时编解码技术研究","福建公司","2年","邹林、方方","15892030591;13625006768","15892030591@139.com",90,null,"panzhengang@chinamobile.com;liuguangyi@chinamobile.com;wangqixing@chinamobile.com;yuqing@chinamobile.com;wenjianwei@chinamobile.com;15892030591@139.com"]
[6,"业务","基于无线传感网的融合性室内定位解决方案研究","物联网公司","1年","倪双雪",15802312029,"15802312029@139.com",80,null,"panzhengang@chinamobile.com;liuguangyi@chinamobile.com;wangqixing@chinamobile.com;yuqing@chinamobile.com;wenjianwei@chinamobile.com;15892030591@139.com;15802312029@139.com"]
[7,"IT支撑与大数据","业务支撑系统信息模型关键技术研究","业务支撑系统部","2年","常倩",13911503251,"changqian@chinamobile.com",200,null,"panzhengang@chinamobile.com;liuguangyi@chinamobile.com;wangqixing@chinamobile.com;yuqing@chinamobile.com;wenjianwei@chinamobile.com;15892030591@139.com;15802312029@139.com;changqian@chinamobile.com"]
[8,"IT支撑与大数据","语义网关键技术研究与工具开发","管理信息系统部","2年","丁子哲",13810090115,"dingzizhe@chinamobile.com",100,null,"panzhengang@chinamobile.com;liuguangyi@chinamobile.com;wangqixing@chinamobile.com;yuqing@chinamobile.com;wenjianwei@chinamobile.com;15892030591@139.com;15802312029@139.com;changqian@chinamobile.com;dingzizhe@chinamobile.com"]
[9,"IT支撑与大数据","客户声音自动文本识别系统研发与应用","广东公司","1.5年","郭靖羽",13922202287,"guojingyu@gz.gd.chinamobile.com",60,null,"panzhengang@chinamobile.com;liuguangyi@chinamobile.com;wangqixing@chinamobile.com;yuqing@chinamobile.com;wenjianwei@chinamobile.com;15892030591@139.com;15802312029@139.com;changqian@chinamobile.com;dingzizhe@chinamobile.com;guojingyu@gz.gd.chinamobile.com"]
[10,"IT支撑与大数据","大数据典型业务场景和企业数据模型构建方法研究 ","技术部","1年","宋翊麟",13426211200,"songyilin@chinamobile.com",120,null,"panzhengang@chinamobile.com;liuguangyi@chinamobile.com;wangqixing@chinamobile.com;yuqing@chinamobile.com;wenjianwei@chinamobile.com;15892030591@139.com;15802312029@139.com;changqian@chinamobile.com;dingzizhe@chinamobile.com;guojingyu@gz.gd.chinamobile.com;songyilin@chinamobile.com"]
[11,"IT支撑与大数据","面向非结构化数据的并行挖掘算法研究和实现","研究院","1年","邓超",15810454651,"dengchao@chinamobile.com",120,null,"panzhengang@chinamobile.com;liuguangyi@chinamobile.com;wangqixing@chinamobile.com;yuqing@chinamobile.com;wenjianwei@chinamobile.com;15892030591@139.com;15802312029@139.com;changqian@chinamobile.com;dingzizhe@chinamobile.com;guojingyu@gz.gd.chinamobile.com;songyilin@chinamobile.com;dengchao@chinamobile.com"]
[12,"IT支撑与大数据","大数据混搭架构下透明访问和数据统一管理技术研究与验证","业务支撑系统部","1年","何鸿凌",13601101331,"hehongling@chinamobile.com",150,null,"panzhengang@chinamobile.com;liuguangyi@chinamobile.com;wangqixing@chinamobile.com;yuqing@chinamobile.com;wenjianwei@chinamobile.com;15892030591@139.com;15802312029@139.com;changqian@chinamobile.com;dingzizhe@chinamobile.com;guojingyu@gz.gd.chinamobile.com;songyilin@chinamobile.com;dengchao@chinamobile.com;hehongling@chinamobile.com"]
[13,"IT支撑与大数据","面向下一代OA与知识社区的互惠匹配模型关键技术与应用研究","管理信息系统部","1年","张向祺",13911323216,"zhangxiangqi@chinamobile.com",100,null,"panzhengang@chinamobile.com;liuguangyi@chinamobile.com;wangqixing@chinamobile.com;yuqing@chinamobile.com;wenjianwei@chinamobile.com;15892030591@139.com;15802312029@139.com;changqian@chinamobile.com;dingzizhe@chinamobile.com;guojingyu@gz.gd.chinamobile.com;songyilin@chinamobile.com;dengchao@chinamobile.com;hehongling@chinamobile.com;zhangxiangqi@chinamobile.com"]
[14,"IT支撑与大数据","基于网络侧数据的用户特征提取与新业务受众预测研究","湖北公司、设计院","1年","冯文仲\n詹义","13871377799;\n13671398925","fengwenzhong@hb.chinamobile.com;zhanyi@cmdi.chinamobile.com",100,null,"panzhengang@chinamobile.com;liuguangyi@chinamobile.com;wangqixing@chinamobile.com;yuqing@chinamobile.com;wenjianwei@chinamobile.com;15892030591@139.com;15802312029@139.com;changqian@chinamobile.com;dingzizhe@chinamobile.com;guojingyu@gz.gd.chinamobile.com;songyilin@chinamobile.com;dengchao@chinamobile.com;hehongling@chinamobile.com;zhangxiangqi@chinamobile.com;fengwenzhong@hb.chinamobile.com;zhanyi@cmdi.chinamobile.com"]
[15,"IT支撑与大数据","大数据时代下移动消费的社会化商务模式研究","广东公司","1.5年","李伟权",13922200510,"liweiquan@gd.chinamobile.com",40,null,"panzhengang@chinamobile.com;liuguangyi@chinamobile.com;wangqixing@chinamobile.com;yuqing@chinamobile.com;wenjianwei@chinamobile.com;15892030591@139.com;15802312029@139.com;changqian@chinamobile.com;dingzizhe@chinamobile.com;guojingyu@gz.gd.chinamobile.com;songyilin@chinamobile.com;dengchao@chinamobile.com;hehongling@chinamobile.com;zhangxiangqi@chinamobile.com;fengwenzhong@hb.chinamobile.com;zhanyi@cmdi.chinamobile.com;liweiquan@gd.chinamobile.com"]
[16,"IT支撑与大数据","基于大数据技术的用户偏好智能识别及推荐研究与应用","浙江公司","2年","沈治",13857134567,"shenzhi@zj.chinamobile.com",50,null,"panzhengang@chinamobile.com;liuguangyi@chinamobile.com;wangqixing@chinamobile.com;yuqing@chinamobile.com;wenjianwei@chinamobile.com;15892030591@139.com;15802312029@139.com;changqian@chinamobile.com;dingzizhe@chinamobile.com;guojingyu@gz.gd.chinamobile.com;songyilin@chinamobile.com;dengchao@chinamobile.com;hehongling@chinamobile.com;zhangxiangqi@chinamobile.com;fengwenzhong@hb.chinamobile.com;zhanyi@cmdi.chinamobile.com;liweiquan@gd.chinamobile.com;shenzhi@zj.chinamobile.com"]
[17,"信息安全","高级持续威胁入侵方法和技术研究","设计院","2年","杜雪涛",13910888992,"duxuetao@cmdi.chinamobile.com",70,null,"panzhengang@chinamobile.com;liuguangyi@chinamobile.com;wangqixing@chinamobile.com;yuqing@chinamobile.com;wenjianwei@chinamobile.com;15892030591@139.com;15802312029@139.com;changqian@chinamobile.com;dingzizhe@chinamobile.com;guojingyu@gz.gd.chinamobile.com;songyilin@chinamobile.com;dengchao@chinamobile.com;hehongling@chinamobile.com;zhangxiangqi@chinamobile.com;fengwenzhong@hb.chinamobile.com;zhanyi@cmdi.chinamobile.com;liweiquan@gd.chinamobile.com;shenzhi@zj.chinamobile.com;duxuetao@cmdi.chinamobile.com"]
[18,"信息安全","内容安全的关键字词与图片索引分析与溯源技术研究","设计院","2年","杜雪涛",13910888992,"duxuetao@cmdi.chinamobile.com",70,null,"panzhengang@chinamobile.com;liuguangyi@chinamobile.com;wangqixing@chinamobile.com;yuqing@chinamobile.com;wenjianwei@chinamobile.com;15892030591@139.com;15802312029@139.com;changqian@chinamobile.com;dingzizhe@chinamobile.com;guojingyu@gz.gd.chinamobile.com;songyilin@chinamobile.com;dengchao@chinamobile.com;hehongling@chinamobile.com;zhangxiangqi@chinamobile.com;fengwenzhong@hb.chinamobile.com;zhanyi@cmdi.chinamobile.com;liweiquan@gd.chinamobile.com;shenzhi@zj.chinamobile.com;duxuetao@cmdi.chinamobile.com;duxuetao@cmdi.chinamobile.com"]
[19,"信息安全","在HTML5应用环境下的支付业务可管可控方法研究","广东公司","2年","赖燕燕",13922200167,"laiyanyan@gd.chinamobile.com;13902220971@139.com",40,null,"panzhengang@chinamobile.com;liuguangyi@chinamobile.com;wangqixing@chinamobile.com;yuqing@chinamobile.com;wenjianwei@chinamobile.com;15892030591@139.com;15802312029@139.com;changqian@chinamobile.com;dingzizhe@chinamobile.com;guojingyu@gz.gd.chinamobile.com;songyilin@chinamobile.com;dengchao@chinamobile.com;hehongling@chinamobile.com;zhangxiangqi@chinamobile.com;fengwenzhong@hb.chinamobile.com;zhanyi@cmdi.chinamobile.com;liweiquan@gd.chinamobile.com;shenzhi@zj.chinamobile.com;duxuetao@cmdi.chinamobile.com;duxuetao@cmdi.chinamobile.com;laiyanyan@gd.chinamobile.com;13902220971@139.com"]
[20,"基础配套","阀控式密封铅酸蓄电池循环寿命与生产原材料关系研究","采购共享服务中心","2年","宋福峰",13911503236,"songfufeng@chinamobile.com",200,null,"panzhengang@chinamobile.com;liuguangyi@chinamobile.com;wangqixing@chinamobile.com;yuqing@chinamobile.com;wenjianwei@chinamobile.com;15892030591@139.com;15802312029@139.com;changqian@chinamobile.com;dingzizhe@chinamobile.com;guojingyu@gz.gd.chinamobile.com;songyilin@chinamobile.com;dengchao@chinamobile.com;hehongling@chinamobile.com;zhangxiangqi@chinamobile.com;fengwenzhong@hb.chinamobile.com;zhanyi@cmdi.chinamobile.com;liweiquan@gd.chinamobile.com;shenzhi@zj.chinamobile.com;duxuetao@cmdi.chinamobile.com;duxuetao@cmdi.chinamobile.com;laiyanyan@gd.chinamobile.com;13902220971@139.com;songfufeng@chinamobile.com"]
[21,"基础配套","中国移动办公建筑能耗分析模型设计与实证研究","管理信息系统部","1年","赵建杰",13811472576,"zhaojianjie@chinamobile.com",100,null,"panzhengang@chinamobile.com;liuguangyi@chinamobile.com;wangqixing@chinamobile.com;yuqing@chinamobile.com;wenjianwei@chinamobile.com;15892030591@139.com;15802312029@139.com;changqian@chinamobile.com;dingzizhe@chinamobile.com;guojingyu@gz.gd.chinamobile.com;songyilin@chinamobile.com;dengchao@chinamobile.com;hehongling@chinamobile.com;zhangxiangqi@chinamobile.com;fengwenzhong@hb.chinamobile.com;zhanyi@cmdi.chinamobile.com;liweiquan@gd.chinamobile.com;shenzhi@zj.chinamobile.com;duxuetao@cmdi.chinamobile.com;duxuetao@cmdi.chinamobile.com;laiyanyan@gd.chinamobile.com;13902220971@139.com;songfufeng@chinamobile.com;zhaojianjie@chinamobile.com"]
[22,"基础配套","大型数据中心油机机组荷载作用下建筑结构设计及减振隔振技术研究","设计院","2年","张学斌",13910920120,"zhangxuebin@cmdi.chinamobile.com",98,null,"panzhengang@chinamobile.com;liuguangyi@chinamobile.com;wangqixing@chinamobile.com;yuqing@chinamobile.com;wenjianwei@chinamobile.com;15892030591@139.com;15802312029@139.com;changqian@chinamobile.com;dingzizhe@chinamobile.com;guojingyu@gz.gd.chinamobile.com;songyilin@chinamobile.com;dengchao@chinamobile.com;hehongling@chinamobile.com;zhangxiangqi@chinamobile.com;fengwenzhong@hb.chinamobile.com;zhanyi@cmdi.chinamobile.com;liweiquan@gd.chinamobile.com;shenzhi@zj.chinamobile.com;duxuetao@cmdi.chinamobile.com;duxuetao@cmdi.chinamobile.com;laiyanyan@gd.chinamobile.com;13902220971@139.com;songfufeng@chinamobile.com;zhaojianjie@chinamobile.com;zhangxuebin@cmdi.chinamobile.com"]
["-","合计",{"$nulls":6},{"$f":"SUM(I2:I23)","v":2536}]
[]
[]
[{"$nulls":10},"panzhengang@chinamobile.com;liuguangyi@chinamobile.com;wangqixing@chinamobile.com;yuqing@chinamobile.com;wenjianwei@chinamobile.com;15892030591@139.com;15802312029@139.com;changqian@chinamobile.com;dingzizhe@chinamobile.com;guojingyu@gz.gd.chinamobile.com;songyilin@chinamobile.com;dengchao@chinamobile.com;hehongling@chinamobile.com;zhangxiangqi@chinamobile.com;fengwenzhong@hb.chinamobile.com;zhanyi@cmdi.chinamobile.com;liweiquan@gd.chinamobile.com;shenzhi@zj.chinamobile.com;duxuetao@cmdi.chinamobile.com;duxuetao@cmdi.chinamobile.com;laiyanyan@gd.chinamobile.com;13902220971@139.com;songfufeng@chinamobile.com;zhaojianjie@chinamobile.com;zhangxuebin@cmdi.chinamobile.com"]
[]
[]
[]
[]
[{"$nulls":7},"panzhengang@chinamobile.com",null,null,{"$f":"H32","v":"panzhengang@chinamobile.com"}]
[{"$nulls":7},"liuguangyi@chinamobile.com",null,null,{"$f":"K32&\";\"&H33","v":"panzhengang@chinamobile.com;liuguangyi@chinamobile.com"}]
[{"$nulls":7},"yuqing@chinamobile.com",null,null,{"$f":"K33&\";\"&H34","v":"panzhengang@chinamobile.com;liuguangyi@chinamobile.com;yuqing@chinamobile.com"}]
[{"$nulls":7},"guojingyu@gz.gd.chinamobile.com",null,null,"panzhengang@chinamobile.com;liuguangyi@chinamobile.com;yuqing@chinamobile.com;guojingyu@gz.gd.chinamobile.com"]
[{"$nulls":7},"songyilin@chinamobile.com",null,null,"panzhengang@chinamobile.com;liuguangyi@chinamobile.com;yuqing@chinamobile.com;guojingyu@gz.gd.chinamobile.com;songyilin@chinamobile.com"]
[{"$nulls":7},"liweiquan@gd.chinamobile.com",null,null,"panzhengang@chinamobile.com;liuguangyi@chinamobile.com;yuqing@chinamobile.com;guojingyu@gz.gd.chinamobile.com;songyilin@chinamobile.com;liweiquan@gd.chinamobile.com"]
[{"$nulls":7},"shenzhi@zj.chinamobile.com",null,null,"panzhengang@chinamobile.com;liuguangyi@chinamobile.com;yuqing@chinamobile.com;guojingyu@gz.gd.chinamobile.com;songyilin@chinamobile.com;liweiquan@gd.chinamobile.com;shenzhi@zj.chinamobile.com"]
[]
[]
[{"$nulls":10},"panzhengang@chinamobile.com;liuguangyi@chinamobile.com;yuqing@chinamobile.com;guojingyu@gz.gd.chinamobile.com;songyilin@chinamobile.com;liweiquan@gd.chinamobile.com;shenzhi@zj.chinamobile.com"]

{"sheet":"Sheet4","index":3,"n_rows":40,"n_cols":24,"rows_kept":40,"hidden":true,"merged":[[1,0,2,0],[1,1,2,1],[1,2,1,6],[1,7,2,7],[17,0,18,0],[17,1,18,1],[17,2,17,6],[17,7,18,7]]}
["1、需求单位、研究领域，项目数量"]
["序号","单位","研究领域",{"$nulls":4},"合计"]
[null,null,"移动通信网络","业务","IT支撑与大数据","信息安全","基础配套",{"$nulls":8},"序号","单位","项目数量","项目预算","占比",null,"单位","项目数量","项目预算"]
[1,"采购共享服务中心",{"$f":"SUM(('2013年项目联系人'!#REF!=$B4)*('2013年项目联系人'!$B$3:$B$24=C$3))","v":{"$error":"#REF!"}},{"$f":"SUM(('2013年项目联系人'!#REF!=$B4)*('2013年项目联系人'!$B$3:$B$24=D$3))","v":{"$error":"#REF!"}},{"$f":"SUM(('2013年项目联系人'!#REF!=$B4)*('2013年项目联系人'!$B$3:$B$24=E$3))","v":{"$error":"#REF!"}},{"$f":"SUM(('2013年项目联系人'!#REF!=$B4)*('2013年项目联系人'!$B$3:$B$24=F$3))","v":{"$error":"#REF!"}},{"$f":"SUM(('2013年项目联系人'!#REF!=$B4)*('2013年项目联系人'!$B$3:$B$24=G$3))","v":{"$error":"#REF!"}},{"$f":"SUM(C4:G4)","v":{"$error":"#REF!"}},{"$nulls":7},{"$f":"A4","v":1},{"$f":"B4","v":"采购共享服务中心"},{"$f":"H4","v":{"$error":"#REF!"}},{"$f":"H20","v":{"$error":"#REF!"}},{"$f":"S4/$S$15","v":{"$error":"#REF!"}},null,"采购共享服务中心",1,200]
[2,"业务支撑系统部",{"$f":"SUM(('2013年项目联系人'!#REF!=$B5)*('2013年项目联系人'!$B$3:$B$24=C$3))","v":{"$error":"#REF!"}},{"$f":"SUM(('2013年项目联系人'!#REF!=$B5)*('2013年项目联系人'!$B$3:$B$24=D$3))","v":{"$error":"#REF!"}},{"$f":"SUM(('2013年项目联系人'!#REF!=$B5)*('2013年项目联系人'!$B$3:$B$24=E$3))","v":{"$error":"#REF!"}},{"$f":"SUM(('2013年项目联系人'!#REF!=$B5)*('2013年项目联系人'!$B$3:$B$24=F$3))","v":{"$error":"#REF!"}},{"$f":"SUM(('2013年项目联系人'!#REF!=$B5)*('2013年项目联系人'!$B$3:$B$24=G$3))","v":{"$error":"#REF!"}},{"$error":"#REF!"},{"$nulls":7},2,"业务支撑系统部",{"$error":"#REF!"},{"$error":"#REF!"},{"$error":"#REF!"},null,"业务支撑系统部",2,350]
[3,"管理信息系统部",{"$f":"SUM(('2013年项目联系人'!#REF!=$B6)*('2013年项目联系人'!$B$3:$B$24=C$3))","v":{"$error":"#REF!"}},{"$f":"SUM(('2013年项目联系人'!#REF!=$B6)*('2013年项目联系人'!$B$3:$B$24=D$3))","v":{"$error":"#REF!"}},{"$f":"SUM(('2013年项目联系人'!#REF!=$B6)*('2013年项目联系人'!$B$3:$B$24=E$3))","v":{"$error":"#REF!"}},{"$f":"SUM(('2013年项目联系人'!#REF!=$B6)*('2013年项目联系人'!$B$3:$B$24=F$3))","v":{"$error":"#REF!"}},{"$f":"SUM(('2013年项目联系人'!#REF!=$B6)*('2013年项目联系人'!$B$3:$B$24=G$3))","v":{"$error":"#REF!"}},{"$error":"#REF!"},{"$nulls":7},3,"管理信息系统部",{"$error":"#REF!"},{"$error":"#REF!"},{"$error":"#REF!"},null,"管理信息系统部",3,300]
[4,"技术部",{"$f":"SUM(('2013年项目联系人'!#REF!=$B7)*('2013年项目联系人'!$B$3:$B$24=C$3))","v":{"$error":"#REF!"}},{"$f":"SUM(('2013年项目联系人'!#REF!=$B7)*('2013年项目联系人'!$B$3:$B$24=D$3))","v":{"$error":"#REF!"}},{"$f":"SUM(('2013年项目联系人'!#REF!=$B7)*('2013年项目联系人'!$B$3:$B$24=E$3))","v":{"$error":"#REF!"}},{"$f":"SUM(('2013年项目联系人'!#REF!=$B7)*('2013年项目联系人'!$B$3:$B$24=F$3))","v":{"$error":"#REF!"}},{"$f":"SUM(('2013年项目联系人'!#REF!=$B7)*('2013年项目联系人'!$B$3:$B$24=G$3))","v":{"$error":"#REF!"}},{"$error":"#REF!"},{"$nulls":7},4,"技术部",{"$error":"#REF!"},{"$error":"#REF!"},{"$error":"#REF!"},null,"技术部",1,120]
[5,"研究院",{"$f":"SUM(('2013年项目联系人'!#REF!=$B8)*('2013年项目联系人'!$B$3:$B$24=C$3))","v":{"$error":"#REF!"}},{"$f":"SUM(('2013年项目联系人'!#REF!=$B8)*('2013年项目联系人'!$B$3:$B$24=D$3))","v":{"$error":"#REF!"}},{"$f":"SUM(('2013年项目联系人'!#REF!=$B8)*('2013年项目联系人'!$B$3:$B$24=E$3))","v":{"$error":"#REF!"}},{"$f":"SUM(('2013年项目联系人'!#REF!=$B8)*('2013年项目联系人'!$B$3:$B$24=F$3))","v":{"$error":"#REF!"}},{"$f":"SUM(('2013年项目联系人'!#REF!=$B8)*('2013年项目联系人'!$B$3:$B$24=G$3))","v":{"$error":"#REF!"}},{"$error":"#REF!"},{"$nulls":7},5,"研究院",{"$error":"#REF!"},{"$error":"#REF!"},{"$error":"#REF!"},null,"研究院",5,868]
[6,"设计院",{"$f":"SUM(('2013年项目联系人'!#REF!=$B9)*('2013年项目联系人'!$B$3:$B$24=C$3))","v":{"$error":"#REF!"}},{"$f":"SUM(('2013年项目联系人'!#REF!=$B9)*('2013年项目联系人'!$B$3:$B$24=D$3))","v":{"$error":"#REF!"}},{"$f":"SUM(('2013年项目联系人'!#REF!=$B9)*('2013年项目联系人'!$B$3:$B$24=E$3))","v":{"$error":"#REF!"}},{"$f":"SUM(('2013年项目联系人'!#REF!=$B9)*('2013年项目联系人'!$B$3:$B$24=F$3))","v":{"$error":"#REF!"}},{"$f":"SUM(('2013年项目联系人'!#REF!=$B9)*('2013年项目联系人'!$B$3:$B$24=G$3))","v":{"$error":"#REF!"}},{"$error":"#REF!"},{"$nulls":7},6,"设计院",{"$error":"#REF!"},{"$error":"#REF!"},{"$error":"#REF!"},null,"设计院",3,238]
[7,"物联网公司",{"$f":"SUM(('2013年项目联系人'!#REF!=$B10)*('2013年项目联系人'!$B$3:$B$24=C$3))","v":{"$error":"#REF!"}},{"$f":"SUM(('2013年项目联系人'!#REF!=$B10)*('2013年项目联系人'!$B$3:$B$24=D$3))","v":{"$error":"#REF!"}},{"$f":"SUM(('2013年项目联系人'!#REF!=$B10)*('2013年项目联系人'!$B$3:$B$24=E$3))","v":{"$error":"#REF!"}},{"$f":"SUM(('2013年项目联系人'!#REF!=$B10)*('2013年项目联系人'!$B$3:$B$24=F$3))","v":{"$error":"#REF!"}},{"$f":"SUM(('2013年项目联系人'!#REF!=$B10)*('2013年项目联系人'!$B$3:$B$24=G$3))","v":{"$error":"#REF!"}},{"$error":"#REF!"},{"$nulls":7},7,"物联网公司",{"$error":"#REF!"},{"$error":"#REF!"},{"$error":"#REF!"},null,"物联网公司",1,80]
[8,"浙江公司",{"$f":"SUM(('2013年项目联系人'!#REF!=$B11)*('2013年项目联系人'!$B$3:$B$24=C$3))","v":{"$error":"#REF!"}},{"$f":"SUM(('2013年项目联系人'!#REF!=$B11)*('2013年项目联系人'!$B$3:$B$24=D$3))","v":{"$error":"#REF!"}},{"$f":"SUM(('2013年项目联系人'!#REF!=$B11)*('2013年项目联系人'!$B$3:$B$24=E$3))","v":{"$error":"#REF!"}},{"$f":"SUM(('2013年项目联系人'!#REF!=$B11)*('2013年项目联系人'!$B$3:$B$24=F$3))","v":{"$error":"#REF!"}},{"$f":"SUM(('2013年项目联系人'!#REF!=$B11)*('2013年项目联系人'!$B$3:$B$24=G$3))","v":{"$error":"#REF!"}},{"$error":"#REF!"},{"$nulls":7},8,"浙江公司",{"$error":"#REF!"},{"$error":"#REF!"},{"$error":"#REF!"},null,null,{"$f":"SUM(W4:W10)","v":16},{"$f":"SUM(X4:X10)","v":2156}]
[9,"福建公司",{"$f":"SUM(('2013年项目联系人'!#REF!=$B12)*('2013年项目联系人'!$B$3:$B$24=C$3))","v":{"$error":"#REF!"}},{"$f":"SUM(('2013年项目联系人'!#REF!=$B12)*('2013年项目联系人'!$B$3:$B$24=D$3))","v":{"$error":"#REF!"}},{"$f":"SUM(('2013年项目联系人'!#REF!=$B12)*('2013年项目联系人'!$B$3:$B$24=E$3))","v":{"$error":"#REF!"}},{"$f":"SUM(('2013年项目联系人'!#REF!=$B12)*('2013年项目联系人'!$B$3:$B$24=F$3))","v":{"$error":"#REF!"}},{"$f":"SUM(('2013年项目联系人'!#REF!=$B12)*('2013年项目联系人'!$B$3:$B$24=G$3))","v":{"$error":"#REF!"}},{"$error":"#REF!"},{"$nulls":7},9,"福建公司",{"$error":"#REF!"},{"$error":"#REF!"},{"$error":"#REF!"}]
[10,"湖北公司、设计院",{"$f":"SUM(('2013年项目联系人'!#REF!=$B13)*('2013年项目联系人'!$B$3:$B$24=C$3))","v":{"$error":"#REF!"}},{"$f":"SUM(('2013年项目联系人'!#REF!=$B13)*('2013年项目联系人'!$B$3:$B$24=D$3))","v":{"$error":"#REF!"}},{"$f":"SUM(('2013年项目联系人'!#REF!=$B13)*('2013年项目联系人'!$B$3:$B$24=E$3))","v":{"$error":"#REF!"}},{"$f":"SUM(('2013年项目联系人'!#REF!=$B13)*('2013年项目联系人'!$B$3:$B$24=F$3))","v":{"$error":"#REF!"}},{"$f":"SUM(('2013年项目联系人'!#REF!=$B13)*('2013年项目联系人'!$B$3:$B$24=G$3))","v":{"$error":"#REF!"}},{"$error":"#REF!"},{"$nulls":7},10,"湖北公司、设计院",{"$error":"#REF!"},{"$error":"#REF!"},{"$error":"#REF!"}]
[11,"广东公司",{"$f":"SUM(('2013年项目联系人'!#REF!=$B14)*('2013年项目联系人'!$B$3:$B$24=C$3))","v":{"$error":"#REF!"}},{"$f":"SUM(('2013年项目联系人'!#REF!=$B14)*('2013年项目联系人'!$B$3:$B$24=D$3))","v":{"$error":"#REF!"}},{"$f":"SUM(('2013年项目联系人'!#REF!=$B14)*('2013年项目联系人'!$B$3:$B$24=E$3))","v":{"$error":"#REF!"}},{"$f":"SUM(('2013年项目联系人'!#REF!=$B14)*('2013年项目联系人'!$B$3:$B$24=F$3))","v":{"$error":"#REF!"}},{"$f":"SUM(('2013年项目联系人'!#REF!=$B14)*('2013年项目联系人'!$B$3:$B$24=G$3))","v":{"$error":"#REF!"}},{"$error":"#REF!"},{"$nulls":7},11,"广东公司",{"$error":"#REF!"},{"$error":"#REF!"},{"$error":"#REF!"}]
["-","合计",{"$f":"SUM(C4:C14)","v":{"$error":"#REF!"}},{"$error":"#REF!"},{"$error":"#REF!"},{"$error":"#REF!"},{"$error":"#REF!"},{"$error":"#REF!"},{"$nulls":7},"-","合计",{"$f":"SUM(R4:R14)","v":{"$error":"#REF!"}},{"$f":"SUM(S4:S14)","v":{"$error":"#REF!"}},{"$error":"#REF!"}]
[]
[]
["序号","单位","研究领域",{"$nulls":4},"合计"]
[null,null,"移动通信网络","业务","IT支撑与大数据","信息安全","基础配套"]
[1,"采购共享服务中心",{"$f":"SUM(('2013年项目联系人'!#REF!=$B20)*('2013年项目联系人'!$B$3:$B$24=C$19)*('2013年项目联系人'!#REF!))","v":{"$error":"#REF!"}},{"$f":"SUM(('2013年项目联系人'!#REF!=$B20)*('2013年项目联系人'!$B$3:$B$24=D$19)*('2013年项目联系人'!#REF!))","v":{"$error":"#REF!"}},{"$f":"SUM(('2013年项目联系人'!#REF!=$B20)*('2013年项目联系人'!$B$3:$B$24=E$19)*('2013年项目联系人'!#REF!))","v":{"$error":"#REF!"}},{"$f":"SUM(('2013年项目联系人'!#REF!=$B20)*('2013年项目联系人'!$B$3:$B$24=F$19)*('2013年项目联系人'!#REF!))","v":{"$error":"#REF!"}},{"$f":"SUM(('2013年项目联系人'!#REF!=$B20)*('2013年项目联系人'!$B$3:$B$24=G$19)*('2013年项目联系人'!#REF!))","v":{"$error":"#REF!"}},{"$f":"SUM(C20:G20)","v":{"$error":"#REF!"}}]
[2,"业务支撑系统部",{"$f":"SUM(('2013年项目联系人'!#REF!=$B21)*('2013年项目联系人'!$B$3:$B$24=C$19)*('2013年项目联系人'!#REF!))","v":{"$error":"#REF!"}},{"$f":"SUM(('2013年项目联系人'!#REF!=$B21)*('2013年项目联系人'!$B$3:$B$24=D$19)*('2013年项目联系人'!#REF!))","v":{"$error":"#REF!"}},{"$f":"SUM(('2013年项目联系人'!#REF!=$B21)*('2013年项目联系人'!$B$3:$B$24=E$19)*('2013年项目联系人'!#REF!))","v":{"$error":"#REF!"}},{"$f":"SUM(('2013年项目联系人'!#REF!=$B21)*('2013年项目联系人'!$B$3:$B$24=F$19)*('2013年项目联系人'!#REF!))","v":{"$error":"#REF!"}},{"$f":"SUM(('2013年项目联系人'!#REF!=$B21)*('2013年项目联系人'!$B$3:$B$24=G$19)*('2013年项目联系人'!#REF!))","v":{"$error":"#REF!"}},{"$error":"#REF!"}]
[3,"管理信息系统部",{"$f":"SUM(('2013年项目联系人'!#REF!=$B22)*('2013年项目联系人'!$B$3:$B$24=C$19)*('2013年项目联系人'!#REF!))","v":{"$error":"#REF!"}},{"$f":"SUM(('2013年项目联系人'!#REF!=$B22)*('2013年项目联系人'!$B$3:$B$24=D$19)*('2013年项目联系人'!#REF!))","v":{"$error":"#REF!"}},{"$f":"SUM(('2013年项目联系人'!#REF!=$B22)*('2013年项目联系人'!$B$3:$B$24=E$19)*('2013年项目联系人'!#REF!))","v":{"$error":"#REF!"}},{"$f":"SUM(('2013年项目联系人'!#REF!=$B22)*('2013年项目联系人'!$B$3:$B$24=F$19)*('2013年项目联系人'!#REF!))","v":{"$error":"#REF!"}},{"$f":"SUM(('2013年项目联系人'!#REF!=$B22)*('2013年项目联系人'!$B$3:$B$24=G$19)*('2013年项目联系人'!#REF!))","v":{"$error":"#REF!"}},{"$error":"#REF!"}]
[4,"技术部",{"$f":"SUM(('2013年项目联系人'!#REF!=$B23)*('2013年项目联系人'!$B$3:$B$24=C$19)*('2013年项目联系人'!#REF!))","v":{"$error":"#REF!"}},{"$f":"SUM(('2013年项目联系人'!#REF!=$B23)*('2013年项目联系人'!$B$3:$B$24=D$19)*('2013年项目联系人'!#REF!))","v":{"$error":"#REF!"}},{"$f":"SUM(('2013年项目联系人'!#REF!=$B23)*('2013年项目联系人'!$B$3:$B$24=E$19)*('2013年项目联系人'!#REF!))","v":{"$error":"#REF!"}},{"$f":"SUM(('2013年项目联系人'!#REF!=$B23)*('2013年项目联系人'!$B$3:$B$24=F$19)*('2013年项目联系人'!#REF!))","v":{"$error":"#REF!"}},{"$f":"SUM(('2013年项目联系人'!#REF!=$B23)*('2013年项目联系人'!$B$3:$B$24=G$19)*('2013年项目联系人'!#REF!))","v":{"$error":"#REF!"}},{"$error":"#REF!"}]
[5,"研究院",{"$f":"SUM(('2013年项目联系人'!#REF!=$B24)*('2013年项目联系人'!$B$3:$B$24=C$19)*('2013年项目联系人'!#REF!))","v":{"$error":"#REF!"}},{"$f":"SUM(('2013年项目联系人'!#REF!=$B24)*('2013年项目联系人'!$B$3:$B$24=D$19)*('2013年项目联系人'!#REF!))","v":{"$error":"#REF!"}},{"$f":"SUM(('2013年项目联系人'!#REF!=$B24)*('2013年项目联系人'!$B$3:$B$24=E$19)*('2013年项目联系人'!#REF!))","v":{"$error":"#REF!"}},{"$f":"SUM(('2013年项目联系人'!#REF!=$B24)*('2013年项目联系人'!$B$3:$B$24=F$19)*('2013年项目联系人'!#REF!))","v":{"$error":"#REF!"}},{"$f":"SUM(('2013年项目联系人'!#REF!=$B24)*('2013年项目联系人'!$B$3:$B$24=G$19)*('2013年项目联系人'!#REF!))","v":{"$error":"#REF!"}},{"$error":"#REF!"}]
[6,"设计院",{"$f":"SUM(('2013年项目联系人'!#REF!=$B25)*('2013年项目联系人'!$B$3:$B$24=C$19)*('2013年项目联系人'!#REF!))","v":{"$error":"#REF!"}},{"$f":"SUM(('2013年项目联系人'!#REF!=$B25)*('2013年项目联系人'!$B$3:$B$24=D$19)*('2013年项目联系人'!#REF!))","v":{"$error":"#REF!"}},{"$f":"SUM(('2013年项目联系人'!#REF!=$B25)*('2013年项目联系人'!$B$3:$B$24=E$19)*('2013年项目联系人'!#REF!))","v":{"$error":"#REF!"}},{"$f":"SUM(('2013年项目联系人'!#REF!=$B25)*('2013年项目联系人'!$B$3:$B$24=F$19)*('2013年项目联系人'!#REF!))","v":{"$error":"#REF!"}},{"$f":"SUM(('2013年项目联系人'!#REF!=$B25)*('2013年项目联系人'!$B$3:$B$24=G$19)*('2013年项目联系人'!#REF!))","v":{"$error":"#REF!"}},{"$error":"#REF!"}]
[7,"物联网公司",{"$f":"SUM(('2013年项目联系人'!#REF!=$B26)*('2013年项目联系人'!$B$3:$B$24=C$19)*('2013年项目联系人'!#REF!))","v":{"$error":"#REF!"}},{"$f":"SUM(('2013年项目联系人'!#REF!=$B26)*('2013年项目联系人'!$B$3:$B$24=D$19)*('2013年项目联系人'!#REF!))","v":{"$error":"#REF!"}},{"$f":"SUM(('2013年项目联系人'!#REF!=$B26)*('2013年项目联系人'!$B$3:$B$24=E$19)*('2013年项目联系人'!#REF!))","v":{"$error":"#REF!"}},{"$f":"SUM(('2013年项目联系人'!#REF!=$B26)*('2013年项目联系人'!$B$3:$B$24=F$19)*('2013年项目联系人'!#REF!))","v":{"$error":"#REF!"}},{"$f":"SUM(('2013年项目联系人'!#REF!=$B26)*('2013年项目联系人'!$B$3:$B$24=G$19)*('2013年项目联系人'!#REF!))","v":{"$error":"#REF!"}},{"$error":"#REF!"}]
[9,"浙江公司",{"$f":"SUM(('2013年项目联系人'!#REF!=$B27)*('2013年项目联系人'!$B$3:$B$24=C$19)*('2013年项目联系人'!#REF!))","v":{"$error":"#REF!"}},{"$f":"SUM(('2013年项目联系人'!#REF!=$B27)*('2013年项目联系人'!$B$3:$B$24=D$19)*('2013年项目联系人'!#REF!))","v":{"$error":"#REF!"}},{"$f":"SUM(('2013年项目联系人'!#REF!=$B27)*('2013年项目联系人'!$B$3:$B$24=E$19)*('2013年项目联系人'!#REF!))","v":{"$error":"#REF!"}},{"$f":"SUM(('2013年项目联系人'!#REF!=$B27)*('2013年项目联系人'!$B$3:$B$24=F$19)*('2013年项目联系人'!#REF!))","v":{"$error":"#REF!"}},{"$f":"SUM(('2013年项目联系人'!#REF!=$B27)*('2013年项目联系人'!$B$3:$B$24=G$19)*('2013年项目联系人'!#REF!))","v":{"$error":"#REF!"}},{"$error":"#REF!"}]
[10,"福建公司",{"$f":"SUM(('2013年项目联系人'!#REF!=$B28)*('2013年项目联系人'!$B$3:$B$24=C$19)*('2013年项目联系人'!#REF!))","v":{"$error":"#REF!"}},{"$f":"SUM(('2013年项目联系人'!#REF!=$B28)*('2013年项目联系人'!$B$3:$B$24=D$19)*('2013年项目联系人'!#REF!))","v":{"$error":"#REF!"}},{"$f":"SUM(('2013年项目联系人'!#REF!=$B28)*('2013年项目联系人'!$B$3:$B$24=E$19)*('2013年项目联系人'!#REF!))","v":{"$error":"#REF!"}},{"$f":"SUM(('2013年项目联系人'!#REF!=$B28)*('2013年项目联系人'!$B$3:$B$24=F$19)*('2013年项目联系人'!#REF!))","v":{"$error":"#REF!"}},{"$f":"SUM(('2013年项目联系人'!#REF!=$B28)*('2013年项目联系人'!$B$3:$B$24=G$19)*('2013年项目联系人'!#REF!))","v":{"$error":"#REF!"}},{"$error":"#REF!"}]
[11,"湖北公司、设计院",{"$f":"SUM(('2013年项目联系人'!#REF!=$B29)*('2013年项目联系人'!$B$3:$B$24=C$19)*('2013年项目联系人'!#REF!))","v":{"$error":"#REF!"}},{"$f":"SUM(('2013年项目联系人'!#REF!=$B29)*('2013年项目联系人'!$B$3:$B$24=D$19)*('2013年项目联系人'!#REF!))","v":{"$error":"#REF!"}},{"$f":"SUM(('2013年项目联系人'!#REF!=$B29)*('2013年项目联系人'!$B$3:$B$24=E$19)*('2013年项目联系人'!#REF!))","v":{"$error":"#REF!"}},{"$f":"SUM(('2013年项目联系人'!#REF!=$B29)*('2013年项目联系人'!$B$3:$B$24=F$19)*('2013年项目联系人'!#REF!))","v":{"$error":"#REF!"}},{"$f":"SUM(('2013年项目联系人'!#REF!=$B29)*('2013年项目联系人'!$B$3:$B$24=G$19)*('2013年项目联系人'!#REF!))","v":{"$error":"#REF!"}},{"$error":"#REF!"}]
[12,"广东公司",{"$f":"SUM(('2013年项目联系人'!#REF!=$B30)*('2013年项目联系人'!$B$3:$B$24=C$19)*('2013年项目联系人'!#REF!))","v":{"$error":"#REF!"}},{"$f":"SUM(('2013年项目联系人'!#REF!=$B30)*('2013年项目联系人'!$B$3:$B$24=D$19)*('2013年项目联系人'!#REF!))","v":{"$error":"#REF!"}},{"$f":"SUM(('2013年项目联系人'!#REF!=$B30)*('2013年项目联系人'!$B$3:$B$24=E$19)*('2013年项目联系人'!#REF!))","v":{"$error":"#REF!"}},{"$f":"SUM(('2013年项目联系人'!#REF!=$B30)*('2013年项目联系人'!$B$3:$B$24=F$19)*('2013年项目联系人'!#REF!))","v":{"$error":"#REF!"}},{"$f":"SUM(('2013年项目联系人'!#REF!=$B30)*('2013年项目联系人'!$B$3:$B$24=G$19)*('2013年项目联系人'!#REF!))","v":{"$error":"#REF!"}},{"$error":"#REF!"}]
["-","合计",{"$f":"SUM(C20:C30)","v":{"$error":"#REF!"}},{"$error":"#REF!"},{"$error":"#REF!"},{"$error":"#REF!"},{"$error":"#REF!"},{"$error":"#REF!"}]
[]
[]
[{"$nulls":8},"序号","专业领域","项目数量","预算金额","占比"]
[{"$nulls":8},1,"移动通信网络",{"$f":"HLOOKUP(J35,$C$3:$G$15,13,FALSE)","v":{"$error":"#REF!"}},{"$f":"HLOOKUP(J35,$C$19:$G$31,13,FALSE)","v":{"$error":"#REF!"}},{"$f":"L35/$L$40","v":{"$error":"#REF!"}}]
[{"$nulls":8},2,"业务",{"$f":"HLOOKUP(J36,$C$3:$G$15,13,FALSE)","v":{"$error":"#REF!"}},{"$f":"HLOOKUP(J36,$C$19:$G$31,13,FALSE)","v":{"$error":"#REF!"}},{"$error":"#REF!"}]
[{"$nulls":8},3,"IT支撑与大数据",{"$error":"#REF!"},{"$error":"#REF!"},{"$error":"#REF!"}]
[{"$nulls":8},4,"信息安全",{"$error":"#REF!"},{"$error":"#REF!"},{"$error":"#REF!"}]
[{"$nulls":8},5,"基础配套",{"$error":"#REF!"},{"$error":"#REF!"},{"$error":"#REF!"}]
[{"$nulls":8},"-","合计",{"$f":"SUM(K35:K39)","v":{"$error":"#REF!"}},{"$f":"SUM(L35:L39)","v":{"$error":"#REF!"}},{"$error":"#REF!"}]